Cogmind - Beta 11.1 @@@ ROGUE MODE // 2022.08.25 @ 01:18:10 Player: Richard Blunt Result: Destroyed by Y-54 Guardian with Gatling Laser Performance ------------- Evolutions (3) 1500 Regions Visited (10) 2000 Robots Destroyed (61) 305 Value Destroyed (1630) 1630 Prototype IDs (26) 520 Alien Tech Used (0) 0 Bonus (311) 311 TOTAL SCORE: 6266 Bonus ------- High Alert Combat Kills 11 Aligned with FarCom 300 Cogmind --------- Core Integrity 0/700 Matter 114/300 Energy 95/100 System Corruption 8% Temperature Cool (12) Movement Core (50) Location -7/Factory Parts ------- > --- POWER (1) -------- (None) > --- PROPULSION (4) --- (None) > --- UTILITY (6) ------ (None) > --- WEAPON (2) ------- Spear > --- INVENTORY (5) ---- Enhanced Nuclear Core Improved Carbon-fiber Leg Large Storage Unit Cloak of Protection Heavy Ion Cannon Peak State ------------ > --- POWER ------------ Deuterium Engine > --- PROPULSION ------- Aluminum Leg Aluminum Leg Titanium Leg Titanium Leg > --- UTILITY ---------- Improved Heat Sink Cooling System Large Storage Unit Improved Signal Interpreter Light Armor Plating Hardened Medium Armor Plating > --- WEAPON ----------- Phase Cannon Katana > --- INVENTORY -------- Improved Ion Engine Aluminum Leg Titanium Leg Titanium Leg Cryofiber Web Large Storage Unit Compact Battery Improved Sensor Array Cloak of Protection Particle Gun Particle Gun Field Laser Shotgun Flak Cannon Shock Bomb Launcher [Rating: 36] Favorites ----------- Power Light Ion Engine Engine Light Ion Engine Power Core Reinforced Fission Core Propulsion Aluminum Leg Leg Aluminum Leg Wheel Armored Wheel Hover Unit Gravmag System Utility Large Storage Unit Device Seismic Detector Storage Large Storage Unit Processor Signal Interpreter Protection Light Armor Plating Weapon Particle Gun Energy Gun Particle Gun Energy Cannon Phase Cannon Ballistic Gun Shotgun Ballistic Cannon Flak Cannon Special Weapon Mining Laser Impact Weapon Maul Slashing Weapon Katana Piercing Weapon Spear Build | -11 -10 -10 -9 -9 -9 -8 -8 -7 -7 -7 ------- Run | Scr Mat Min Mat Min Exi Min Mat Fac Was Fac Slots Evolved 6 | . . . 2 . . . 2 2 . . Power . | . . . . . . . . . . . Propulsion 2 | . . . 1 . . . . 1 . . Utility 4 | . . . 1 . . . 2 1 . . Weapon . | . . . . . . . . . . . Parts Attached 135 | 9 27 2 6 16 . 2 47 8 8 10 Power 18 | 1 3 . . 4 . . 8 . 1 1 Engine 17 | 1 3 . . 4 . . 8 . . 1 Core 1 | . . . . . . . . . 1 . Reactor . | . . . . . . . . . . . Propulsion 35 | 2 7 2 2 6 . . 10 1 2 3 Treads . | . . . . . . . . . . . Leg 25 | . 7 2 2 6 . . 5 1 2 . Wheel 8 | 2 . . . . . . 5 . . 1 Hover 2 | . . . . . . . . . . 2 Flight . | . . . . . . . . . . . Utility 33 | 2 4 . 3 1 . 1 13 4 1 4 Device 11 | 2 . . 1 . . 1 4 1 . 2 Storage 5 | . 1 . 1 . . . 1 1 . 1 Processor 4 | . 1 . 1 . . . 1 1 . . Hackware . | . . . . . . . . . . . Protection 13 | . 2 . . 1 . . 7 1 1 1 Artifact . | . . . . . . . . . . . Weapon 49 | 4 13 . 1 5 . 1 16 3 4 2 Energy Gun 15 | 1 2 . . 4 . 1 4 1 2 . Energy Cannon 1 | . . . . . . . . . 1 . Ballistic Gun 16 | 3 6 . . 1 . . 6 . . . Ballistic Cannon 2 | . . . . . . . . . 1 1 Launcher . | . . . . . . . . . . . Special Weapon 6 | . 5 . 1 . . . . . . . Impact Weapon 5 | . . . . . . . 5 . . . Slashing Weapon 3 | . . . . . . . 1 2 . . Piercing Weapon 1 | . . . . . . . . . . 1 Special Melee Weapon . | . . . . . . . . . . . Unidentified Prototypes 1 | . . . . . . . 1 . . . Parts Lost 32 | . 4 . . 14 . . 5 . 6 3 Power 6 | . 1 . . 3 . . 1 . . 1 Propulsion 7 | . . . . 4 . . . . 2 1 Utility 11 | . 2 . . 2 . . 3 . 3 1 Weapon 8 | . 1 . . 5 . . 1 . 1 . Highest Loss Streak 8 | . 2 . . 8 . . 4 . 5 3 To Critical Strikes . | . . . . . . . . . . . Average Slot Usage (%) 88 | . 98 100 100 81 88 97 96 100 42 17 Engine 9 | . 13 14 11 7 11 11 8 7 2 . Leg 19 | . 26 28 33 31 33 33 3 30 10 . Wheel 7 | . 1 . . . . . 23 . . . Device 7 | . 9 . 10 1 . 9 12 15 8 2 Storage 9 | . 13 14 11 11 11 11 9 7 2 . Processor 7 | . . 14 11 11 11 11 9 7 5 . Protection 5 | . 2 . . 3 . . 11 14 5 1 Energy Gun 8 | . 2 14 11 14 22 22 4 10 . . Ballistic Gun 8 | . 20 14 1 . . . 10 . . . Special Weapon 1 | . 5 . 9 . . . . . . . Naked Turns 226 | . . . . . . . . . 31 195 Heaviest Build 54 | 8 21 19 30 34 27 29 41 49 54 14 Greatest Support 54 | 20 20 20 33 33 30 30 44 54 54 17 Greatest Overweight (x) 3 | . 1 . . 2 . . 3 . 2 1 Average Overweight (x) . | . . . . . . . . . . . Largest Inventory Capacity 15 | 5 10 10 15 15 15 15 15 15 15 5 Average Capacity 12 | 5 9 10 15 15 15 15 15 15 9 5 Most Carried 15 | 5 10 10 9 8 8 12 15 15 15 5 Average Carried 10 | 4 9 10 7 4 7 11 14 13 9 4 Final Capacity 15 | 5 10 10 15 15 15 15 15 15 5 5 Final Carried 15 | 5 10 10 8 7 8 12 15 15 5 5 Class Distribution -------------------- 52% | Mutant 47% | Scavenger-Mutant Dominant Class ---------------- Mutant | -10/Materials Scavenger-Mutant | -10/Mines Mutant | -9/Materials Scavenger-Mutant | -9/Mines Scavenger-Mutant | -9/Exiles Scavenger-Mutant | -8/Mines Mutant | -8/Materials Scavenger-Mutant | -7/Factory Mutant | -7/Waste Mutant | -7/Factory Resources | -11 -10 -10 -9 -9 -9 -8 -8 -7 -7 -7 ----------- Run | Scr Mat Min Mat Min Exi Min Mat Fac Was Fac Matter Collected 1923 | 336 427 55 . 152 . 10 746 50 . 147 Remotely . | . . . . . . . . . . . Salvage Created 1915 | 115 625 194 . 158 . 28 703 . . 92 Parts 131 | 11 46 7 3 9 . 3 45 . . 7 Haulers Intercepted . | . . . . . . . . . . . Recyclers Shooed 3 | . . 1 . . . . 1 . . 1 Parts Field Recycled . | . . . . . . . . . . . Retrieved Matter . | . . . . . . . . . . . Parts Self-Destructed . | . . . . . . . . . . . Prevented . | . . . . . . . . . . . Kills | -11 -10 -10 -9 -9 -9 -8 -8 -7 -7 -7 ------- Run | Scr Mat Min Mat Min Exi Min Mat Fac Was Fac Combat Hostiles Destroyed 49 | 1 15 4 . 5 . 2 21 . . 1 Melee 2 | . . . . . . . 1 . . 1 Guns 47 | 1 15 4 . 5 . 2 20 . . . Classes Destroyed 10 | 2 3 1 . 1 . . 1 . . 2 Worker 2 | . . . . . . . . . . 2 Tunneler 4 | 4 . . . . . . . . . . Recycler 2 | . . 1 . . . . 1 . . . Operator 2 | . 1 . 1 . . . . . . . Watcher 3 | . 2 . . . . . 1 . . . Swarmer 15 | . 3 . . . . 2 10 . . . Grunt 27 | 1 12 4 . 4 . . 6 . . . Sentry 5 | . . . . . . . 5 . . . Programmer 1 | . . . . . . . . . . 1 Assembled 1 | . . . . 1 . . . . . . Best Kill Streak 5 | 1 5 2 1 3 . 2 5 . . 1 Combat Bots Only 5 | 1 5 2 . 3 . 2 5 . . 1 Max Kills in Single Turn 2 | 1 2 2 1 1 . 2 2 . . 1 Gunslinging 1 | . 1 1 . . . 1 1 . . . Exploded . | . . . . . . . . . . . Melee 1 | . . . . . . . 1 . . 1 Uniques/NPCs Destroyed . | . . . . . . . . . . . Combat | -11 -10 -10 -9 -9 -9 -8 -8 -7 -7 -7 -------- Run | Scr Mat Min Mat Min Exi Min Mat Fac Was Fac Damage Taken 4131 | 11 711 66 . 1086 . 34 1140 . 253 830 Core 1175 | . 149 . . 116 . . 206 . 165 539 Absorbed by Shields . | . . . . . . . . . . . Redirected to Shielding 106 | . . . . . . . 106 . . . Regen/Repaired (Parts) 43 | . . . . . . . 43 . . . Core Remaining (%) 68 | 100 . 40 . . . 71 62 . . . Volleys Fired 205 | 18 72 15 6 28 . 3 58 . 1 4 Largest 2 | 2 2 2 1 2 . 2 2 . 2 1 Hottest 148 | 40 120 85 100 105 . 105 130 . 148 44 Shots Fired 347 | 32 125 30 6 31 . 6 111 . 2 4 Gun 317 | 32 106 30 . 31 . 6 111 . 1 . Cannon 5 | . . . . . . . . . 1 4 Launcher . | . . . . . . . . . . . Special 25 | . 19 . 6 . . . . . . . Kinetic 228 | 28 96 15 . 1 . . 84 . . 4 Thermal 115 | . 29 15 6 30 . 6 27 . 2 . Explosive . | . . . . . . . . . . . Electromagnetic 4 | 4 . . . . . . . . . . Robot Hit Streak 9 | 6 9 8 3 8 . 3 9 . 4 6 Robot Miss Streak 5 | 2 3 3 . 3 . 2 5 . . 3 Penetration Max . | . . . . . . . . . . . Secondary Targets 8 | . 2 1 . . . 1 4 . . . Max Gunslinging Chain 1 | . 1 1 . . . 1 1 . . . Shots Hit Robots 246 | 22 70 27 1 21 . 4 90 . 2 9 Core Hits 135 | 7 32 29 1 11 . 2 47 . . 6 Critical Kills 1 | . . . . . . . 1 . . . Critical Parts Destroyed 1 | 1 . . . . . . . . . . Critical Strikes 2 | 1 . . . . . . 1 . . . Destroy 2 | 1 . . . . . . 1 . . . Melee Attacks 50 | . . . . . . . 34 9 . 7 Impact 29 | . . . . . . . 29 . . . Slashing 14 | . . . . . . . 5 9 . . Piercing 7 | . . . . . . . . . . 7 Sneak Attacks . | . . . . . . . . . . . Combat Hostiles . | . . . . . . . . . . . Follow-up Attacks . | . . . . . . . . . . . Damage Inflicted 3431 | 240 733 338 24 239 . 59 1469 . 47 282 Guns 2801 | 240 733 338 . 239 . 59 1174 . 18 . Cannons 124 | . . . . . . . . . 29 95 Explosions . | . . . . . . . . . . . Melee 443 | . . . . . . . 295 . . 148 Ramming 39 | . . . . . . . . . . 39 Kinetic 1954 | 215 633 96 . 8 . . 907 . . 95 Thermal 970 | . 100 242 24 231 . 59 267 . 47 . Explosive . | . . . . . . . . . . . Electromagnetic 25 | 25 . . . . . . . . . . Impact 295 | . . . . . . . 295 . . . Slashing . | . . . . . . . . . . . Piercing 148 | . . . . . . . . . . 148 Highest Corruption 17 | . . . . . . . 1 . 17 17 Average Corruption 3 | . . . . . . . 1 . 12 9 Corruption Purged 10 | . . . . . . . . . . 10 Corruption Blocked . | . . . . . . . . . . . Effects 35 | . . . . . . . 8 . 5 22 Message Errors 6 | . . . . . . . . . 1 5 Matter Fused 11 | . . . . . . . 3 . 3 5 Energy Discharges 7 | . . . . . . . 1 . . 6 Parts Rejected 1 | . . . . . . . . . . 1 Data Loss (minor) 4 | . . . . . . . 3 . 1 . Data Loss (major) 1 | . . . . . . . . . . 1 Misfires 1 | . . . . . . . 1 . . . Alerts 3 | . . . . . . . . . . 3 Misdirections 1 | . . . . . . . . . . 1 Overload Shots . | . . . . . . . . . . . Overflow Damage . | . . . . . . . . . . . Projectiles . | . . . . . . . . . . . Explosions . | . . . . . . . . . . . Melee . | . . . . . . . . . . . Knockbacks 3 | . . . . . . . 3 . . . Impact 3 | . . . . . . . 3 . . . Kinetic . | . . . . . . . . . . . Secondary . | . . . . . . . . . . . Self-Inflicted Damage 19 | . . . . . . . . . . 19 Shots . | . . . . . . . . . . . Rammed 5 | . . . . . . . . . . 5 Targets Rammed 5 | . . . . . . . . . . 5 Kicked . | . . . . . . . . . . . Crushed . | . . . . . . . . . . . Highest Temperature 174 | 6 174 166 16 106 . 108 44 . 45 . Average Temperature 35 | 6 30 76 6 36 . 54 11 . 24 . Received Heat Transfer 1314 | 6 318 39 . 204 . . 522 . . 225 Siege Activations . | . . . . . . . . . . . Robots Corrupted . | . . . . . . . . . . . Combat Hostiles . | . . . . . . . . . . . Parts Fried . | . . . . . . . . . . . Impact Corruptions . | . . . . . . . . . . . Robots Melted . | . . . . . . . . . . . Combat Hostiles . | . . . . . . . . . . . Parts Melted 5 | . 1 . . . . . 4 . . . Heat Transferred 1938 | . 225 310 50 526 . 124 629 . 74 . Parts Sabotaged . | . . . . . . . . . . . Parts Stolen . | . . . . . . . . . . . Parts Stripped . | . . . . . . . . . . . Power Chain Reactions . | . . . . . . . . . . . Missiles Intercepted . | . . . . . . . . . . . Alert | -11 -10 -10 -9 -9 -9 -8 -8 -7 -7 -7 ------- Run | Scr Mat Min Mat Min Exi Min Mat Fac Was Fac Peak Influence 412 | 40 238 197 32 50 . 50 412 174 30 179 Initial 158 | . 26 92 . 12 . . . 158 . 14 Average 77 | 20 91 64 11 23 . 27 107 159 6 60 Maximum Alert Level 2 | . 1 . . . . . 2 . . . Low Security (%) 90 | 100 85 100 100 100 . 100 76 100 100 100 Level 1 8 | . 14 . . . . . 19 . . . Level 2 1 | . . . . . . . 4 . . . Level 3 . | . . . . . . . . . . . Level 4 . | . . . . . . . . . . . Level 5 . | . . . . . . . . . . . High Security . | . . . . . . . . . . . Max Security . | . . . . . . . . . . . Squads Dispatched 12 | . 3 . . . . . 4 1 . 4 Investigation 2 | . . . . . . . 1 . . 1 Extermination 1 | . . . . . . . . . . 1 Reinforcement 9 | . 3 . . . . . 3 1 . 2 Assault . | . . . . . . . . . . . Garrison . | . . . . . . . . . . . Intercept . | . . . . . . . . . . . Searches Triggered . | . . . . . . . . . . . Construction Impeded . | . . . . . . . . . . . Haulers Reinforced 1 | . . . . . . . . . . 1 Active Scanning Responses . | . . . . . . . . . . . Cargo Convoy Interrupts . | . . . . . . . . . . . Stealth | -11 -10 -10 -9 -9 -9 -8 -8 -7 -7 -7 --------- Run | Scr Mat Min Mat Min Exi Min Mat Fac Was Fac Distress Signals 3 | . 1 . . . . . 2 . . . Communications Jammed . | . . . . . . . . . . . Distress Signals . | . . . . . . . . . . . Times Spotted 105 | 1 24 4 3 14 . 3 31 1 6 18 Peak Tracking Total 13 | 1 5 2 2 13 . 3 6 1 6 7 Tactical Retreats 8 | . . . . 1 . . 2 . . 5 Traps | -11 -10 -10 -9 -9 -9 -8 -8 -7 -7 -7 ------- Run | Scr Mat Min Mat Min Exi Min Mat Fac Was Fac Traps Triggered 4 | . . . . . . . 2 1 . 1 Indirectly . | . . . . . . . . . . . Trap Hack Attempts . | . . . . . . . . . . . Triggered . | . . . . . . . . . . . Disarmed . | . . . . . . . . . . . Reprogrammed . | . . . . . . . . . . . Reused . | . . . . . . . . . . . Traps Extracted . | . . . . . . . . . . . Installed . | . . . . . . . . . . . Triggered . | . . . . . . . . . . . Machines | -11 -10 -10 -9 -9 -9 -8 -8 -7 -7 -7 ---------- Run | Scr Mat Min Mat Min Exi Min Mat Fac Was Fac Machines Disabled . | . . . . . . . . . . . Max in Single Turn . | . . . . . . . . . . . Machines Sabotaged . | . . . . . . . . . . . Garrisons Compromised . | . . . . . . . . . . . Overloaded Fab Kills . | . . . . . . . . . . . Hacking | -11 -10 -10 -9 -9 -9 -8 -8 -7 -7 -7 --------- Run | Scr Mat Min Mat Min Exi Min Mat Fac Was Fac Machines Accessed 18 | . 4 . 2 . 2 . 6 2 . 2 Terminals 10 | . 3 . 2 . . . 3 2 . . Fabricators 1 | . . . . . . . . . . 1 Repair Stations 1 | . . . . . . . 1 . . . Recycling Units 3 | . 1 . . . . . 1 . . 1 Scanalyzers 1 | . . . . . . . 1 . . . Garrison Access . | . . . . . . . . . . . Total Hacks 36 | . 6 . 5 . 3 . 15 2 . 5 Successful 22 | . 2 . 3 . 3 . 12 2 . . Failed 13 | . 4 . 2 . . . 2 . . 5 Catastrophic 4 | . 1 . 1 . . . 1 . . 1 Database Lockouts 1 | . . . . . . . 1 . . . Manual 12 | . . . 3 . 1 . 7 1 . . Terminals 22 | . 5 . 5 . . . 10 2 . . Fabricators 2 | . . . . . . . . . . 2 Repair Stations 2 | . . . . . . . 2 . . . Recycling Units 5 | . 1 . . . . . 1 . . 3 Scanalyzers 2 | . . . . . . . 2 . . . Garrison Access . | . . . . . . . . . . . Terminal Hacks 16 | . 1 . 3 . 3 . 7 2 . . Record 4 | . . . . . 2 . 2 . . . Robot Analysis 5 | . . . 1 . . . 3 1 . . Prototype ID Bank 1 | . . . 1 . . . . . . . Open DSF 1 | . . . . . . . . 1 . . Alert Level 2 | . . . . . . . 2 . . . Hauler Manifests 2 | . 1 . 1 . . . . . . . EX-Prototype ID Bank 1 | . . . . . 1 . . . . . Fabricator Hacks . | . . . . . . . . . . . Repair Station Hacks 2 | . . . . . . . 2 . . . Scan Component 1 | . . . . . . . 1 . . . Repair 1 | . . . . . . . 1 . . . Recycling Unit Hacks 2 | . 1 . . . . . 1 . . . Report Inventory 2 | . 1 . . . . . 1 . . . Scanalyzer 2 | . . . . . . . 2 . . . Insert Component 1 | . . . . . . . 1 . . . Analyze 1 | . . . . . . . 1 . . . Garrison Access Hacks . | . . . . . . . . . . . Unauthorized Hacks . | . . . . . . . . . . . Terminals . | . . . . . . . . . . . Fabricators . | . . . . . . . . . . . Repair Stations . | . . . . . . . . . . . Recycling Units . | . . . . . . . . . . . Scanalyzers . | . . . . . . . . . . . Garrison Access . | . . . . . . . . . . . Data Cores Recovered 1 | . . . 1 . . . . . . . Used 1 | . . . 1 . . . . . . . Hacking Detections 11 | . 3 . 2 . . . 3 1 . 2 Full Trace Events 3 | . . . 1 . . . 1 . . 1 Feedback Events 1 | . . . . . . . 1 . . . Corruption 1 | . . . . . . . 1 . . . Feedback Blocked . | . . . . . . . . . . . Robot Schematics Acquired . | . . . . . . . . . . . Robots Built . | . . . . . . . . . . . Authchips . | . . . . . . . . . . . Time . | . . . . . . . . . . . Total Robot Build Rating . | . . . . . . . . . . . Part Schematics Acquired 1 | . . . . . . . 1 . . . Parts Built . | . . . . . . . . . . . Authchips . | . . . . . . . . . . . Time . | . . . . . . . . . . . Total Part Build Rating . | . . . . . . . . . . . Parts Repaired 1 | . . . . . . . 1 . . . Time 26 | . . . . . . . 26 . . . Parts Recycled . | . . . . . . . . . . . Recycled Matter . | . . . . . . . . . . . Retrieved Matter . | . . . . . . . . . . . Retrieved Components . | . . . . . . . . . . . Parts Scanalyzed 1 | . . . . . . . 1 . . . Part Schematics Acquired 1 | . . . . . . . 1 . . . Parts Damaged . | . . . . . . . . . . . Bothacking | -11 -10 -10 -9 -9 -9 -8 -8 -7 -7 -7 ------------ Run | Scr Mat Min Mat Min Exi Min Mat Fac Was Fac Used RIF Installer . | . . . . . . . . . . . Robots Hacked . | . . . . . . . . . . . Non-combat . | . . . . . . . . . . . Combat . | . . . . . . . . . . . Robot Hacks Applied . | . . . . . . . . . . . Relay Couplers Released . | . . . . . . . . . . . Fabnet Peak Effective % . | . . . . . . . . . . . Robots Rewired . | . . . . . . . . . . . Allies Hacked . | . . . . . . . . . . . Hacks Repelled . | . . . . . . . . . . . Allies | -11 -10 -10 -9 -9 -9 -8 -8 -7 -7 -7 -------- Run | Scr Mat Min Mat Min Exi Min Mat Fac Was Fac Total Allies 1 | . . . . . . . . . 1 . Largest Group 1 | . . . . . . . . . 1 . Highest-Rated Group 31 | . . . . . . . . . 31 . Highest-Rated Ally 31 | . . . . . . . . . 31 . Total Orders . | . . . . . . . . . . . Ally Attacks 9 | . . . . . . . . . 9 . Total Damage 169 | . . . . . . . . . 169 . Kills . | . . . . . . . . . . . Allies Corrupted . | . . . . . . . . . . . Allies Melted . | . . . . . . . . . . . Intel | -11 -10 -10 -9 -9 -9 -8 -8 -7 -7 -7 ------- Run | Scr Mat Min Mat Min Exi Min Mat Fac Was Fac Robot Analysis Total 5 | . . . 1 . . . 3 1 . . Derelict Logs Recovered 2 | . . 2 . . . . . . . . Drone Launches . | . . . . . . . . . . . Drone Recoveries . | . . . . . . . . . . . Exploration | -11 -10 -10 -9 -9 -9 -8 -8 -7 -7 -7 ------------- Run | Scr Mat Min Mat Min Exi Min Mat Fac Was Fac Turns Passed 7613 | 209 1191 927 343 334 639 574 2170 414 199 613 Spaces Moved 5363 | 183 659 690 214 181 532 464 960 262 251 967 Core 597 | 16 . . . . . . . . 194 387 Treads . | . . . . . . . . . . . Legs 3161 | . 583 690 214 181 532 464 178 262 57 . Wheels 1060 | 167 76 . . . . . 782 . . 35 Hover 545 | . . . . . . . . . . 545 Flight . | . . . . . . . . . . . Fastest Speed 50 | 50 80 120 120 120 120 120 90 125 50 50 Average Speed 103 | 77 121 120 120 133 120 120 106 125 68 56 Slowest Speed 260 | 80 190 120 120 260 120 120 193 125 260 120 Overloaded Moves . | . . . . . . . . . . . Propulsion Burnouts . | . . . . . . . . . . . Robots Hopped . | . . . . . . . . . . . Cave-ins Triggered . | . . . . . . . . . . . Exploration Rate (%) 53 | 7 75 99 23 21 93 86 61 5 94 23 Regions Visited 10 Branch Regions 4 Pre-discovered Areas 1 | . . . . . 1 . . . . . Known Exits Taken 5 | . . . 1 1 1 1 1 . . . Unknown Exits Taken 3 | 1 1 1 . . . . . . . . Scrap Searched 2 | . . 1 . . . 1 . . . . Spaces Dug 57 | . 19 . 4 . . . 25 9 . . Terrain Destroyed 57 | . 19 . 4 . . . 25 9 . . Melee 34 | . . . . . . . 25 9 . . Projectile 23 | . 19 . 4 . . . . . . . AOE . | . . . . . . . . . . . Terrain Rammed . | . . . . . . . . . . . Walls Destroyed . | . . . . . . . . . . . Machines Disabled . | . . . . . . . . . . . Actions | -11 -10 -10 -9 -9 -9 -8 -8 -7 -7 -7 --------- Run | Scr Mat Min Mat Min Exi Min Mat Fac Was Fac Total 6964 | 217 902 763 281 237 532 474 1932 333 275 1018 Wait 1095 | 1 114 55 54 10 . 2 781 51 8 19 Move 5354 | 182 658 689 213 180 531 463 959 262 250 967 Hop . | . . . . . . . . . . . Pick Up 61 | 6 14 . 1 3 1 3 24 3 3 3 Fast Attach 45 | 7 4 . . 6 . 2 13 . 4 9 Attach 23 | 1 4 . 3 7 . . 4 2 1 1 Detach 4 | . . . . . . 1 2 . 1 . Swap 67 | 1 19 2 3 3 . . 30 6 3 . Drop 55 | 1 17 2 1 . . . 27 . 4 3 Fire 205 | 18 72 15 6 28 . 3 58 . 1 4 Melee 50 | . . . . . . . 34 9 . 7 Ram 5 | . . . . . . . . . . 5 Kick . | . . . . . . . . . . . Crush . | . . . . . . . . . . . Escape Stasis . | . . . . . . . . . . . Rewire . | . . . . . . . . . . . Trap . | . . . . . . . . . . . Miscellaneous . | . . . . . . . . . . . Route ------- -11/Scrapyard -10/Materials (discovered 2 exits: *Mat / [*Min]) -10/Mines (discovered 2 exits: *Mat x2) -9/Materials -9/Mines (discovered 2 exits: *Mat / *Exi) -9/Exiles (discovered 2 exits: *Min x2) -8/Mines (discovered 2 exits: *Mat x2) -8/Materials -7/Factory (discovered 2 exits: Sto / DSF) -7/Waste -7/Factory History --------- Turn | Location | Event 2 | -11/Scrapyard | Met Revision 17 50 | -11/Scrapyard | Discovered new exit (range 8) 210 | -11/Scrapyard | Entered Materials 325 | -10/Materials | Build established: Mutant 594 | -10/Materials | Discovered new exit (range 13) 1246 | -10/Materials | Core integrity fell below 50% 1367 | -10/Materials | Discovered new exit (range 8) 1401 | -10/Materials | Entered Mines 1409 | -10/Mines | Met a Derelict bent on vengeance 1476 | -10/Mines | Discovered new exit (range 6) 1493 | -10/Mines | Learned Materials terminal intel 1534 | -10/Mines | Build established: Scavenger-Mutant 1866 | -10/Mines | Discovered new exit (range 15) 2328 | -10/Mines | Entered Materials 2328 | -9/Materials | Evolved 2 slots: Propulsion x1, Utility x1 2329 | -9/Materials | Loaded intel: 12 terminal locations 2607 | -9/Materials | Discovered new exit (range 15) 2670 | -9/Materials | Identified exit to Mines 2671 | -9/Materials | Entered Mines 2672 | -9/Mines | Assembled infested the area 2685 | -9/Mines | Build established: Mutant 2749 | -9/Mines | Lost 8 parts (1p3n1u3w) 2882 | -9/Mines | Lost 3 parts (1p1n1u) 2900 | -9/Mines | Discovered new exit (range 4) 2905 | -9/Mines | Identified exit to Materials 2999 | -9/Mines | Deemed a non-threat by the Exiles lab entrance 2999 | -9/Mines | Discovered new exit (range 5) 3001 | -9/Mines | Build established: Scavenger-Mutant 3004 | -9/Mines | Identified exit to Exiles 3005 | -9/Mines | Entered Exiles 3027 | -9/Exiles | Discovered new exit (range 14) 3041 | -9/Exiles | Identified exit to Mines 3064 | -9/Exiles | Met 8R-AWN 3083 | -9/Exiles | Met EX-HEX 3141 | -9/Exiles | Met EX-BIN 3161 | -9/Exiles | Aligned with FarCom system 3163 | -9/Exiles | Given EX-Vault access code 3193 | -9/Exiles | Opened EX-Vault 3201 | -9/Exiles | Found Cloak of Protection 3228 | -9/Exiles | Warned to stay clear of 0b10 Research branches 3327 | -9/Exiles | Visited The Gauntlet 3503 | -9/Exiles | Met EX-DEC 3539 | -9/Exiles | Learned location of Zion (-7) 3588 | -9/Exiles | Discovered exit to Mines (range 14) 3644 | -9/Exiles | Left Exiles lab with Cloak of Protection 3644 | -9/Exiles | Entered Mines 4064 | -8/Mines | Discovered exit to Materials (range 12) 4070 | -8/Mines | Discovered exit to Materials (range 7) 4218 | -8/Mines | Entered Materials 4218 | -8/Materials | Evolved 2 slots: Utility x2 4547 | -8/Materials | Build established: Mutant 5221 | -8/Materials | Central database locked down 5383 | -8/Materials | Discovered new exit (range 5) 5387 | -8/Materials | Identified exit to Factory 5816 | -8/Materials | Lost 4 parts (1p2u1w) 6200 | -8/Materials | Build established: Scavenger-Mutant 6233 | -8/Materials | Repaired Lgt. Armor Plating 6388 | -8/Materials | Entered Factory 6388 | -7/Factory | Evolved 2 slots: Propulsion x1, Utility x1 6389 | -7/Factory | Identified exit to Storage 6431 | -7/Factory | Identified exit to DSF 6802 | -7/Factory | Sucked down chute 6802 | -7/Factory | Entered Waste 6803 | -7/Waste | Met a frightened Derelict 6817 | -7/Waste | EMP discharged 6866 | -7/Waste | Spotted C-40 Crusher 6873 | -7/Waste | Spotted C-40 Crusher 6873 | -7/Waste | Crushed by Compactor (1 part destroyed, 2 dropped) 6878 | -7/Waste | Crushed by Compactor (1 part destroyed, 2 dropped) 6879 | -7/Waste | Spotted C-40 Crusher 6879 | -7/Waste | Crushed by Compactor (1 part destroyed, 2 dropped) 6887 | -7/Waste | Crushed by Compactor (1 part destroyed, 1 dropped) 6889 | -7/Waste | Crushed by Compactor (1 part destroyed, 2 dropped) 6917 | -7/Waste | EMP discharged 6917 | -7/Waste | System corruption reached 10% 6920 | -7/Waste | Lost 5 parts (2n2u1w) 6936 | -7/Waste | Spotted C-40 Crusher 6937 | -7/Waste | Spotted C-40 Crusher 6960 | -7/Waste | Spotted C-40 Crusher 6969 | -7/Waste | Crushed by Compactor (1 part destroyed, 1 dropped) 6996 | -7/Waste | Discovered new exit (range 11) 7001 | -7/Waste | Entered Factory 7158 | -7/Factory | Build established: Mutant 7523 | -7/Factory | Core integrity fell below 50% 7575 | -7/Factory | Core integrity fell below 20% 7614 | -7/Factory | Destroyed by Y-54 Guardian with Gatling Laser Last Messages --------------- Acquired 1 matter. Slug penetrates U-05 Engineer. Slug penetrates Wall. K-01 Serf cleans the DSF Access. Slammed into K-01 Serf. K-01 Serf destroyed. Acquired 20 matter. Acquired Lgt. Ion Engine. Acquired Wheel. Extracted 40 matter. Acquired Sml. Matter Pod. Acquired Spear. Lgt. Ion Engine destroyed. P-60 Hacker destroyed. Acquired 44 matter. Slug penetrates Wall. LO83QCA